fUST/lending_fUST_20240412
["ID","MTS","AMOUNT","RATE_DAILY","PERIOD"]
[322269431,1712922632196,-808.58214958,0.00031999,4]
[322269432,1712922632207,-225.88690291,0.00031999,4]
[322269433,1712922632222,-264.33376399,0.00031999,4]
[322269434,1712922632233,-1210.66841003,0.00032,2]
[322269435,1712922632244,-400.0,0.00032147,2]
[322269436,1712922632257,-913.03136204,0.00032148,4]
[322269437,1712922632268,-250.0,0.00032577,2]
[322269438,1712922632278,-166.666666,0.0003258,2]
[322269439,1712922632288,-625.009616,0.00033165,2]
[322269440,1712922632300,-331.651462,0.00033165,2]
[322269441,1712922632312,-166.666666,0.00033468,2]
[322269442,1712922632322,-152.2704012,0.00033739,7]
[322269443,1712922632332,-1210.66841003,0.0003392,2]
[322269444,1712922632342,-465.00692251,0.00034,4]
[322269445,1712922632355,-152.2704012,0.00034206,7]
[322269446,1712922632367,-152.2704012,0.0003429,7]
[322269447,1712922632378,-166.666666,0.00034356,2]
[322269448,1712922632389,-171.815786,0.00034375,2]
[322269449,1712922632400,-152.2704012,0.00034398,7]
[322269450,1712922632412,-152.2704012,0.00034399,7]
[322269451,1712922632423,-500.0,0.00034554,2]
[322269452,1712922632433,-500.0,0.00034554,7]
[322269453,1712922632444,-500.0,0.00034554,7]
[322269454,1712922632456,-500.0,0.00034554,7]
[322269455,1712922632467,-3488.38,0.00034554,7]
[322269456,1712922632478,-500.0,0.00034554,7]
[322269457,1712922632490,-500.81267653,0.00034554,7]
[322269458,1712922632502,-345.7,0.00034828,2]
[322269459,1712922632513,-537.26268478,0.00034828,7]
[322269460,1712922632525,-500.0,0.00034828,7]
[322269461,1712922632538,-3488.38,0.00034828,7]
[322269462,1712922632548,-157.44846144,0.00034892,7]
[322269463,1712922632558,-1505.87488548,0.00035,2]
[322269464,1712922632570,-1500.0,0.00035,2]
[322269465,1712922632580,-150.53610885,0.00035029,7]
[322269466,1712922632590,-152.2704012,0.00035035,7]
[322269467,1712922632602,-501.19253312,0.00035102,7]
[322269468,1712922632614,-3488.38,0.00035102,7]
[322269469,1712922632627,-153.0,0.00035151,2]
[322269470,1712922632639,-740.37697055,0.00035168,2]
[322269471,1712922632650,-152.2704012,0.00035204,7]
[322269472,1712922632661,-166.666666,0.00035245,2]
[322269473,1712922632672,-155.40580361,0.00035344,7]
[322269474,1712922632682,-152.2704012,0.00035354,7]
[322269475,1712922632691,-560.0,0.00035362,2]
[322269476,1712922632702,-3488.38,0.00035376,7]
[322269477,1712922632712,-152.2704012,0.00035381,7]
[322269478,1712922632723,-153.0,0.00035479,2]
[322269479,1712922632733,-158.42642321,0.00035498,2]
[322269480,1712922632743,-2000.0,0.00035596,2]
[322269481,1712922632754,-500.0,0.00035598,7]
[322269482,1712922632764,-500.0,0.00035598,7]
[322269483,1712922632774,-500.0,0.00035598,7]
[322269484,1712922632784,-165.93343071,0.00035598,7]
[322269502,1712922638079,-334.06656929,0.00035598,7]
[322269503,1712922638088,-500.0,0.00035598,7]
[322269504,1712922638097,-172.50814298,0.00035598,7]
[322269505,1712922638107,-336.11201983,0.00035598,7]
[322269506,1712922638116,-500.0,0.00035598,7]
[322269507,1712922638126,-500.0,0.00035598,7]
[322269508,1712922638134,-500.0,0.00035598,7]
[322269509,1712922638144,-500.0,0.00035598,7]
[322269510,1712922638153,-500.0,0.00035598,7]
[322269511,1712922638162,-500.0,0.00035598,7]
[322269512,1712922638174,-500.0,0.00035598,7]
[322269513,1712922638183,-500.0,0.00035598,7]
[322269514,1712922638193,-500.0,0.00035598,7]
[322269515,1712922638202,-510.32791129,0.00035598,7]
[322269516,1712922638210,-500.0,0.00035598,7]
[322269517,1712922638219,-519.68,0.00035598,7]
[322269518,1712922638228,-500.0,0.00035598,7]
[322269519,1712922638237,-203.09855105,0.00035598,7]
[322269520,1712922638246,-1801.74284811,0.000356,2]
[322269521,1712922638255,-2166.464103,0.00035616,120]
[322269522,1712922638264,-157.44846144,0.00035638,7]
[322269523,1712922638273,-503.80975623,0.00035649,7]
[322269524,1712922638283,-300.0,0.00035649,7]
[322269525,1712922638292,-500.0,0.00035649,7]
[322269526,1712922638303,-500.0,0.00035649,7]
[322269527,1712922638313,-500.0,0.00035649,7]
[322269528,1712922638325,-500.0,0.00035649,7]
[322269529,1712922638335,-3488.38,0.0003565,7]
[322269530,1712922638346,-290.79,0.00035686,35]
[322269531,1712922638358,-500.0,0.00035695,7]
[322269532,1712922638367,-500.0,0.00035695,7]
[322269533,1712922638376,-500.0,0.00035695,7]
[322269534,1712922638386,-193.08517013,0.00035695,7]
[322269535,1712922638397,-933.38,0.00035695,7]
[322269536,1712922638407,-500.0,0.00035695,7]
[322269537,1712922638417,-500.0,0.00035695,7]
[322269538,1712922638427,-500.0,0.00035695,7]
[322269539,1712922638438,-500.0,0.00035695,7]
[322269540,1712922638450,-785.81,0.00035695,7]
[322269541,1712922638460,-127170.1924846,0.000357,5]
[322269542,1712922638470,-531978.10196052,0.000357,60]
[322269543,1712922638481,-565.13790355,0.000357,30]
[322269544,1712922638491,-87739.6919176,0.000357,2]
[322269545,1712922638501,-349325.5451248,0.000357,2]
[322269546,1712922638512,-300.0,0.000357,2]
[322269547,1712922638523,-779.64851083,0.000357,2]
[322269548,1712922638537,-1188.52314311,0.000357,14]
[322269549,1712922638547,-224.00976815,0.000357,10]
[322269550,1712922638556,-285.88595717,0.000357,2]
[322269551,1712922638566,-18479.44443157,0.000357,2]
[322269552,1712922638576,-4079.24594241,0.000357,2]
[322269553,1712922638585,-314.84123902,0.000357,2]
[322269554,1712922638594,-280.54988258,0.000357,2]
[322269555,1712922638604,-9920.01033413,0.000357,2]
[322269556,1712922638615,-2702.36420942,0.000357,2]
[322269557,1712922638626,-70343.23826767,0.000357,32]
[322269558,1712922638637,-151.68408914,0.000357,2]
[322269559,1712922638647,-183.78832543,0.000357,30]
[322269560,1712922638658,-27852.16537369,0.000357,2]
[322269561,1712922638668,-507.42791701,0.000357,30]
[322269562,1712922638676,-201.67841748,0.000357,2]
[322269563,1712922638685,-28540.1412467,0.000357,2]
[322269564,1712922638694,-429.81627935,0.000357,2]
[322269565,1712922638703,-306.55911915,0.000357,30]
[322269566,1712922638713,-1001.44779128,0.000357,2]
[322269567,1712922638722,-2000.12716134,0.000357,2]
[322269568,1712922638732,-8544.26204437,0.000357,31]
[322269569,1712922638742,-250.0,0.000357,14]
[322269570,1712922638754,-250.0,0.000357,28]
[322269571,1712922638765,-37532.00049175,0.000357,60]
[322269572,1712922638775,-2503806.41759811,0.000357,60]
[322269573,1712922638785,-2726.2533913,0.000357,2]
[322269574,1712922638795,-632.05280602,0.000357,30]
[322269575,1712922638805,-70000.0,0.000357,2]
[322269576,1712922638816,-206573.39735012,0.000357,30]
[322269577,1712922638826,-52174.48485675,0.000357,30]
[322269578,1712922638836,-19305.08810574,0.000357,2]
[322269579,1712922638846,-150.0,0.000357,2]
[322269580,1712922638856,-929204.06157766,0.000357,60]
[322269582,1712922639000,-5406.45279634,0.000357,60]
[322270015,1712922643315,-188.81562326,0.00035699,15]
[322270016,1712922643326,-17674.28987674,0.000357,60]
[322270023,1712922643432,-22706.90581762,0.000357,60]
[322270025,1712922643445,-5789.07741171,0.000357,60]
[322270026,1712922643456,-3732.04874198,0.000357,60]
[322270089,1712922832673,11080.78082971,0.0002,2]
[322270091,1712922857853,1188.84436881,0.000125,2]
[322270092,1712922877491,1013.06949131,0.00025,2]
[322270124,1712923467138,29862.0084897,0.000245,2]
[322270125,1712923489129,1705.29682047,0.000245,2]
[322270126,1712923519427,19486.61650083,0.00025,7]
[322270127,1712923543622,29862.0084897,0.0002401,2]
[322270128,1712923557631,29862.0084897,0.0002401,2]
[322270130,1712923577628,29862.0084897,0.0002353,2]
[322270132,1712923599072,29862.0084897,0.0002353,2]
[322270134,1712923617632,29862.0084897,0.0002353,2]
[322270135,1712923629154,-364.86423922,0.00024493,2]
[322270136,1712923629174,-601.81614276,0.00024494,2]
[322270137,1712923629194,-250.0,0.00024495,2]
[322270138,1712923629214,-410.45041487,0.00027,2]
[322270139,1712923633634,29862.0084897,0.0002353,2]
[322270140,1712923650867,200.0,0.0002353,2]
[322270141,1712923653640,29862.0084897,0.00023059,2]
[322270142,1712923654945,14937.9915103,0.0002353,2]
[322270143,1712923654973,1119.20700628,0.0002353,2]
[322270145,1712923666795,200.0,0.0002353,2]
[322270146,1712923666879,16057.19851658,0.0002353,2]
[322270147,1712923669640,28742.80148342,0.00023059,2]
[322270148,1712923669664,1119.20700628,0.00023059,2]
[322270149,1712923671246,1730.35063266,0.000224,2]
[322270150,1712923671774,10031.63063213,0.0002353,2]
[322270151,1712923684892,3458.50309161,0.0002353,2]
[322270152,1712923685648,2060.65571894,0.00023059,2]
[322270161,1712923766579,247.91195416,0.00023059,2]
[322270162,1712923766691,249.57927198,0.00019,2]
[322270163,1712923768903,3.7133133,0.00023059,2]
[322270164,1712923768928,500.0,0.00023059,2]
[322270165,1712923768951,604.0169876,0.00023059,2]
[322270166,1712923768972,529.73148046,0.00023059,2]
[322270167,1712923769006,14419.73673522,0.00023059,2]
[322270168,1712923771531,154.82968734,0.00023059,2]
[322270169,1712923771817,691.32087237,0.00023059,2]
[322270170,1712923772816,200.0,0.00023059,2]
[322270171,1712923773039,154.82968734,0.00023059,2]
[322270172,1712923779796,154.82968734,0.00023059,2]
[322270175,1712923787460,154.9225109,0.00023059,2]
[322270177,1712923790907,316.65273689,0.00023059,2]
[322270178,1712923791040,158.91755549,0.00023059,2]
[322270179,1712923794818,200.0,0.00023059,2]
[322270180,1712923795720,242.75117172,0.00023059,2]
[322270181,1712923797744,689.88423122,0.00023059,2]
[322270184,1712923812828,200.0,0.00023059,2]
[322270215,1712923832341,-2937.70369238,0.00026996,2]
[322270217,1712923832350,-154.82968734,0.00026997,2]
[322270219,1712923832359,-181.18098361,0.00026997,2]
[322270221,1712923832368,-581.72962971,0.00026997,2]
[322270223,1712923832377,-887.37861442,0.00026998,2]
[322270225,1712923832386,-250.0,0.00026999,2]
[322270227,1712923832396,-7734.51431634,0.00027,2]
[322270229,1712923832405,-152.33674713,0.00027297,2]
[322270231,1712923832414,-167.911785,0.00027397,2]
[322270232,1712923832424,-168.084084,0.00027397,2]
[322270233,1712923832436,-300.0,0.00027399,2]
[322270234,1712923832446,-1730.35063266,0.000274,2]
[322270235,1712923832455,-554.54677478,0.000275,2]
[322270236,1712923832465,-152.33674705,0.00027935,2]
[322270237,1712923832474,-152.33674705,0.00028574,2]
[322270238,1712923832485,-166.666666,0.0002885,2]
[322270239,1712923832494,-152.33674705,0.00029212,2]
[322270240,1712923832503,-166.666666,0.00029636,2]
[322270241,1712923832512,-152.33674705,0.00029851,2]
[322270242,1712923832521,-420.0,0.00030139,2]
[322270243,1712923832530,-166.666666,0.00030423,2]
[322270244,1712923832539,-152.33674705,0.00030489,2]
[322270245,1712923832548,-152.33674705,0.00031127,2]
[322270246,1712923832557,-166.666666,0.00031209,2]
[322270247,1712923832567,-150.0,0.000315,2]
[322270248,1712923832576,-152.33674705,0.00031766,2]
[322270249,1712923832586,-166.666666,0.00031996,2]
[322270250,1712923832597,-1210.78934384,0.00032,2]
[322270251,1712923832607,-155.00620025,0.0003213,4]
[322270252,1712923832619,-808.58214958,0.00032399,4]
[322270253,1712923832629,-490.2206669,0.00032399,4]
[322270254,1712923832639,-1730.35063266,0.000324,2]
[322270255,1712923832649,-152.33674705,0.00032404,2]
[322270256,1712923832659,-187.202287,0.00032451,2]
[322270257,1712923832669,-166.666666,0.00032783,2]
[322270258,1712923832678,-19595.93378004,0.00032898,2]
[322270259,1712923834824,200.0,0.00023059,2]
[322270264,1712923838315,-936.73565596,0.00026995,2]
[322270265,1712923838325,-5304.06621996,0.00032898,2]
[322270266,1712923838335,-500.0,0.00033026,2]
[322270267,1712923838344,-251.45531595,0.00033026,2]
[322270268,1712923838353,-152.33674705,0.00033042,2]
[322270269,1712923838365,-587.0,0.00033153,2]
[322270270,1712923838375,-1785.37299807,0.000335,2]
[322270271,1712923838386,-152.33674705,0.00033681,2]
[322270272,1712923838395,-1210.78934384,0.0003392,2]
[322270273,1712923838404,-152.27040121,0.00033989,7]
[322270274,1712923838414,-152.27040121,0.00034199,7]
[322270275,1712923838424,-152.33674705,0.00034319,2]
[322270276,1712923838437,-153.0,0.00034341,2]
[322270277,1712923838447,-153.0,0.00034741,2]
[322270278,1712923838456,-153.0,0.00034741,2]
[322270279,1712923838466,-154.10451123,0.00034898,7]
[322270280,1712923838476,-152.33674705,0.00034958,2]
[322270281,1712923838486,-2000.0,0.00035,2]
[322270282,1712923838496,-152.27040121,0.00035111,7]
[322270283,1712923838506,-152.27040121,0.00035213,7]
[322270284,1712923838517,-157.44846144,0.00035219,7]
[322270285,1712923838526,-1491.08441203,0.00035374,4]
[322270288,1712923838545,-519.68,0.00035497,7]
[322270289,1712923838554,-500.0,0.00035497,7]
[322270290,1712923838564,-203.09855105,0.00035497,7]
[322270291,1712923838573,-635.01340647,0.00035497,7]
[322270292,1712923838581,-500.0,0.00035497,7]
[322270293,1712923838591,-1331.73525103,0.00035521,6]
[322270294,1712923838601,-198.15931985,0.00035595,2]
[322270295,1712923838611,-152.33674705,0.00035596,2]
[322270296,1712923838619,-1801.74284811,0.00035597,2]
[322270297,1712923838629,-2166.464104,0.00035616,120]
[322270298,1712923838638,-931.58652421,0.00035649,7]
[322270299,1712923839027,-1975.39347579,0.00035649,7]
[322270301,1712923839038,-154.92253873,0.00035683,4]
[322270303,1712923839051,-154.90705577,0.00035683,4]
[322270305,1712923839064,-154.90705577,0.00035683,4]
[322270307,1712923839076,-548.90126628,0.00035683,4]
[322270310,1712923839088,-215.82383049,0.00035684,4]
[322270312,1712923839100,-500.0,0.00035684,15]
[322270314,1712923839112,-291.91600643,0.00035684,15]
[322270316,1712923839122,-207.29860552,0.00035685,4]
[322270318,1712923839133,-524.8635464,0.00035685,4]
[322270321,1712923839143,-339.39257419,0.00035685,15]
[322270323,1712923839154,-195369.97451125,0.00035685,5]
[322270325,1712923839165,-2956062.22022777,0.00035686,60]
[322270327,1712923839176,-503.21021558,0.00035686,30]
[322270329,1712923839187,-1154.27863175,0.00035686,30]
[322270332,1712923839198,-152.51300818,0.00035686,30]
[322270334,1712923839208,-155.36045823,0.00035686,2]
[322270336,1712923839218,-905.0,0.00035686,30]
[322270338,1712923839230,-910.79359079,0.00035686,30]
[322270340,1712923839241,-905.0,0.00035686,30]
[322270342,1712923839252,-176.0,0.00035686,30]
[322270344,1712923839263,-905.0,0.00035686,30]
[322270346,1712923839274,-317226.35838585,0.00035686,60]
[322270347,1712923839285,-16712.88129071,0.00035686,2]
[322270348,1712923839295,-1729797.31824816,0.00035686,60]
[322270494,1712923840871,-10404.6234124,0.00035686,60]
[322270497,1712923840891,-136399.56405332,0.00035686,60]
[322270794,1712923843671,-5757.15167154,0.00035686,60]
[322271003,1712923852856,200.0,0.00023059,2]
[322271004,1712923865192,1808.15805753,0.000236,2]
[322271005,1712923917338,200.0,0.000236,2]
[322271006,1712923931359,200.0,0.000236,2]
[322271008,1712923945332,200.0,0.000236,2]
[322271011,1712923965344,200.0,0.000236,2]
[322271012,1712923983360,200.0,0.000236,2]
[322271013,1712924007344,200.0,0.000236,2]
[322271014,1712924027411,200.0,0.000236,2]
[322271015,1712924043358,200.0,0.000236,2]
[322271023,1712924407930,17934.00825609,0.000236,2]
[322271024,1712924407969,1214.13900416,0.000236,2]
[322271025,1712924427996,4353.24700256,0.000236,2]
[322271029,1712924827165,-601.81614276,0.00026976,2]
[322271030,1712924827187,-250.0,0.00026977,2]
[322271031,1712924827208,-364.86423922,0.00026978,2]
[322271032,1712924827229,-527.90080216,0.00027,2]
[322271033,1712924876432,150.0,0.000215,2]
[322271104,1712925032607,-3817.26755248,0.00027,2]
[322271105,1712925032618,-151.66506426,0.00027297,2]
[322271106,1712925032628,-164.187152,0.00027397,2]
[322271107,1712925032638,-586.21171,0.00027397,2]
[322271108,1712925032647,-298.486315,0.00027397,2]
[322271109,1712925032657,-1302.0956344,0.00028997,2]
[322271110,1712925032666,-601.81614276,0.00029107,2]
[322271111,1712925032676,-250.0,0.00029108,2]
[322271112,1712925032686,-166.666666,0.00029596,2]
[322271113,1712925032695,-300.0,0.00029751,2]
[322271114,1712925032705,-24900.0,0.00029752,2]
[322271115,1712925032714,-490.2206669,0.00030059,4]
[322271116,1712925032723,-151.66506424,0.0003006,2]
[322271117,1712925032733,-619.18538857,0.00030279,2]
[322271147,1712925038442,-371.97138343,0.00028707,2]
[322271156,1712925039072,-2062.98425705,0.00028707,2]
[322271158,1712925039085,-116.10910222,0.00028707,2]
[322271160,1712925039095,-31.48459643,0.00030279,2]
[322271162,1712925039106,-166.666666,0.00030403,2]
[322271164,1712925039117,-500.0,0.00030661,7]
[322271166,1712925039127,-500.0,0.00030661,7]
[322271168,1712925039137,-7810.6915037,0.00030662,2]
[322271170,1712925039147,-3654.081559,0.00030691,2]
[322271172,1712925039156,-530.90983018,0.00030935,7]
[322271174,1712925039165,-166.666666,0.0003121,2]
[322271176,1712925039175,-166.666666,0.00032017,2]
[322271178,1712925039184,-316.82341125,0.00032117,4]
[322271180,1712925039193,-420.0,0.00032726,2]
[322271182,1712925039203,-151.66506424,0.00032824,2]
[322271184,1712925039213,-166.666666,0.00032824,2]
[322271186,1712925039222,-333.1664808,0.00032926,6]
[322271188,1712925039235,-440.23207232,0.00033026,7]
[322271190,1712925039246,-500.0,0.00033026,7]
[322271192,1712925039257,-500.0,0.00033026,7]
[322271194,1712925039267,-500.0,0.00033026,7]
[322271196,1712925039277,-500.0,0.00033026,7]
[322271198,1712925039287,-500.0,0.00033026,7]
[322271200,1712925039296,-500.0,0.00033026,7]
[322271202,1712925039306,-500.0,0.00033026,7]
[322271204,1712925039316,-504.864169,0.00033026,7]
[322271206,1712925039326,-633.78,0.00033026,7]
[322271208,1712925039335,-500.0,0.00033026,7]
[322271210,1712925039344,-615.32305045,0.00033026,7]
[322271212,1712925039354,-500.0,0.00033026,7]
[322271214,1712925039363,-198.15931983,0.00033042,2]
[322271216,1712925039372,-500.0,0.00033141,7]
[322271218,1712925039381,-500.0,0.00033141,7]
[322271220,1712925039391,-1046.28,0.00033141,7]
[322271222,1712925039400,-500.0,0.00033141,7]
[322271224,1712925039410,-500.0,0.00033141,7]
[322271226,1712925039419,-500.0,0.00033141,7]
[322271228,1712925039428,-500.0,0.00033141,7]
[322271230,1712925039437,-500.0,0.00033141,7]
[322271232,1712925039446,-500.0,0.00033141,7]
[322271234,1712925039454,-500.0,0.00033141,7]
[322271236,1712925039463,-500.0,0.00033141,7]
[322271238,1712925039473,-500.0,0.00033141,7]
[322271240,1712925039482,-500.0,0.00033141,7]
[322271242,1712925039492,-500.0,0.00033141,7]
[322271244,1712925039502,-500.0,0.00033141,7]
[322271246,1712925039512,-500.0,0.00033141,7]
[322271248,1712925039521,-500.0,0.00033141,7]
[322271250,1712925039530,-500.0,0.00033141,7]
[322271252,1712925039539,-500.0,0.00033141,7]
[322271254,1712925039549,-500.0,0.00033142,7]
[322271256,1712925039559,-500.0,0.00033142,7]
[322271258,1712925039570,-500.0,0.00033142,7]
[322271261,1712925039585,-500.0,0.00033142,7]
[322271263,1712925039599,-500.0,0.00033142,7]
[322271266,1712925039612,-500.0,0.00033142,7]
[322271268,1712925039624,-500.0,0.00033142,7]
[322271270,1712925039636,-500.0,0.00033142,7]
[322271272,1712925039648,-500.0,0.00033142,7]
[322271275,1712925039659,-500.0,0.00033142,7]
[322271277,1712925039670,-500.0,0.00033142,7]
[322271279,1712925039682,-500.0,0.00033142,7]
[322271281,1712925039693,-500.0,0.00033142,7]
[322271284,1712925039704,-500.0,0.00033142,7]
[322271286,1712925039716,-500.0,0.00033142,7]
[322271288,1712925039727,-500.0,0.00033142,7]
[322271291,1712925039740,-500.0,0.00033142,7]
[322271293,1712925039754,-500.0,0.00033142,7]
[322271295,1712925039764,-500.0,0.00033142,7]
[322271297,1712925039775,-500.0,0.00033142,7]
[322271300,1712925039786,-500.0,0.00033142,7]
[322271302,1712925039798,-500.0,0.00033142,7]
[322271304,1712925039809,-500.0,0.00033142,7]
[322271306,1712925039821,-500.0,0.00033142,7]
[322271308,1712925039833,-500.0,0.00033142,7]
[322271311,1712925039845,-500.0,0.00033142,7]
[322271313,1712925039856,-573.03156331,0.00033142,7]
[322271315,1712925039866,-500.0,0.00033142,7]
[322271317,1712925039876,-507.03594079,0.00033142,7]
[322271319,1712925039886,-500.0,0.00033142,7]
[322271322,1712925039898,-500.0,0.00033142,7]
[322271324,1712925039910,-500.0,0.00033142,7]
[322271326,1712925039921,-500.0,0.00033142,7]
[322271328,1712925039932,-500.0,0.00033142,7]
[322271330,1712925039943,-838.97,0.00033142,7]
[322271332,1712925039954,-500.0,0.00033142,7]
[322271334,1712925039963,-500.0,0.00033142,7]
[322271337,1712925039975,-500.0,0.00033142,7]
[322271339,1712925039986,-500.0,0.00033142,7]
[322271341,1712925039997,-259.92770034,0.00033142,7]
[322271344,1712925040011,-500.0,0.00033142,7]
[322271347,1712925040022,-500.0,0.00033142,7]
[322271351,1712925040034,-532.65883253,0.00033142,7]
[322271355,1712925040044,-500.0,0.00033142,7]
[322271358,1712925040054,-500.0,0.00033142,7]
[322271362,1712925040063,-500.0,0.00033142,7]
[322271365,1712925040073,-188.76934425,0.00033142,7]
[322271368,1712925040083,-500.0,0.00033142,7]
[322271371,1712925040096,-500.0,0.00033142,7]
[322271373,1712925040107,-500.0,0.00033142,7]
[322271376,1712925040118,-591.46300662,0.00033142,7]
[322271378,1712925040129,-500.0,0.00033142,7]
[322271380,1712925040139,-500.0,0.00033142,7]
[322271382,1712925040151,-500.0,0.00033142,7]
[322271384,1712925040162,-500.0,0.00033142,7]
[322271387,1712925040174,-500.0,0.00033142,7]
[322271389,1712925040184,-586.21171,0.00033165,2]
[322271391,1712925040195,-298.486315,0.00033165,2]
[322271393,1712925040206,-520.74136323,0.000333,7]
[322271395,1712925040217,-500.0,0.000333,7]
[322271397,1712925040229,-500.0,0.000333,7]
[322271399,1712925040243,-1046.28,0.00033415,7]
[322271402,1712925040257,-500.0,0.00033415,7]
[322271404,1712925040267,-500.0,0.00033415,7]
[322271406,1712925040279,-270.76120601,0.00033415,7]
[322271408,1712925040289,-500.0,0.00033415,7]
[322271410,1712925040301,-500.0,0.00033415,7]
[322271412,1712925040314,-291.91600643,0.00033415,7]
[322271414,1712925040326,-500.0,0.00033416,7]
[322271417,1712925040338,-500.0,0.00033416,7]
[322271419,1712925040349,-500.0,0.00033416,7]
[322271421,1712925040360,-334.06656929,0.00033416,7]
[322271423,1712925040372,-500.0,0.00033416,7]
[322271425,1712925040383,-172.50814298,0.00033416,7]
[322271428,1712925040394,-268.11855882,0.00033416,7]
[322271430,1712925040406,-500.0,0.00033416,7]
[322271432,1712925040416,-500.0,0.00033416,7]
[322271434,1712925040426,-500.0,0.00033416,7]
[322271436,1712925040437,-500.0,0.00033416,7]
[322271438,1712925040447,-838.97,0.00033416,7]
[322271440,1712925040457,-500.0,0.00033416,7]
[322271442,1712925040467,-500.0,0.00033416,7]
[322271444,1712925040478,-500.0,0.00033416,7]
[322271446,1712925040488,-510.32791129,0.00033416,7]
[322271448,1712925040502,-500.0,0.00033573,7]
[322271450,1712925040513,-166.666666,0.00033631,2]
[322271453,1712925040524,-1046.28,0.00033689,7]
[322271455,1712925040534,-500.0,0.00033689,7]
[322271457,1712925040544,-500.0,0.00033689,7]
[322271459,1712925040554,-500.0,0.00033689,7]
[322271461,1712925040565,-500.0,0.0003369,7]
[322271463,1712925040576,-500.0,0.0003369,7]
[322271465,1712925040586,-596.91,0.0003369,7]
[322271467,1712925040596,-500.0,0.0003369,7]
[322271469,1712925040606,-500.0,0.0003369,7]
[322271471,1712925040616,-838.97,0.0003369,7]
[322271473,1712925040626,-500.0,0.0003369,7]
[322271476,1712925040636,-500.0,0.0003369,7]
[322271478,1712925040646,-500.0,0.0003369,7]
[322271480,1712925040657,-500.0,0.00033847,7]
[322271482,1712925040666,-1046.28,0.00033963,7]
[322271484,1712925040676,-500.0,0.00033963,7]
[322271486,1712925040687,-247.17080539,0.00033963,7]
[322271488,1712925040697,-500.0,0.00033963,7]
[322271490,1712925040707,-330.87,0.00033964,7]
[322271492,1712925040717,-500.0,0.00033964,7]
[322271494,1712925040727,-500.0,0.00033964,7]
[322271497,1712925040738,-838.97,0.00033964,7]
[322271499,1712925040749,-450.49073602,0.00033964,7]
[322271501,1712925040760,-608.19,0.00033964,7]
[322271503,1712925040770,-500.0,0.00033964,7]
[322271505,1712925040780,-500.0,0.00033964,7]
[322271507,1712925040790,-154.92253873,0.0003412,4]
[322271509,1712925040800,-295.02,0.00034121,7]
[322271512,1712925040810,-152.27040121,0.00034228,7]
[322271514,1712925040821,-1046.28,0.00034237,7]
[322271516,1712925040831,-460.85,0.00034237,7]
[322271518,1712925040841,-500.0,0.00034237,7]
[322271520,1712925040852,-426.46,0.00034238,7]
[322271522,1712925040862,-500.0,0.00034238,7]
[322271524,1712925040872,-838.97,0.00034238,7]
[322271526,1712925040882,-500.0,0.00034238,7]
[322271541,1712925040892,-403.38461677,0.0003441,2]
[322271543,1712925041018,-173.476192,0.00034412,2]
[322271545,1712925041028,-154.10451124,0.0003448,7]
[322271547,1712925041037,-154.10451124,0.00034482,7]
[322271549,1712925041046,-1046.28,0.00034511,7]
[322271551,1712925041055,-500.0,0.00034511,7]
[322271553,1712925041064,-500.0,0.00034512,7]
[322271555,1712925041074,-838.97,0.00034512,7]
[322271557,1712925041083,-500.0,0.00034512,7]
[322271558,1712925041092,-500.0,0.00034719,120]
[322271559,1712925041101,-500.0,0.00034719,120]
[322271560,1712925041110,-500.0,0.00034719,120]